[Event "Titled Tuesday Blitz March 21 Early 2023"]
[White "Vaglio Munoz, Jaime"]
[Black "Bhavikatti, Neil"]
[WhiteFideId "6500145"]
[BlackFideId "30935024"]
[WhiteElo "2199"]
[BlackElo "2354"]
[Result "1-0"]
[Round "09"]
[TimeControl "180+2"]
[Date "2023.03.21"]
[WhiteClock "0:01:23"]
[BlackClock "0:00:08"]

1. Nf3 {[%clk 0:03:00]}  Nf6 {[%clk 0:02:58]} 2. c4 {[%clk 0:03:00]}  c5 {[%clk 0:02:58]} 3. b3 {[%clk 0:03:00]}  b6 {[%clk 0:02:52]} 4. Bb2 {[%clk 0:03:00]}  Bb7 {[%clk 0:02:52]} 5. g3 {[%clk 0:03:00]}  g6 {[%clk 0:02:48]} 6. Bxf6 {[%clk 0:02:53]}  exf6 {[%clk 0:02:48]} 7. Bg2 {[%clk 0:02:53]}  Bg7 {[%clk 0:02:48]} 8. Nc3 {[%clk 0:02:49]}  O-O {[%clk 0:02:47]} 9. Rc1 {[%clk 0:02:46]}  f5 {[%clk 0:02:47]} 10. e3 {[%clk 0:02:46]}  Nc6 {[%clk 0:02:45]} 11. O-O {[%clk 0:02:46]}  Ne7 {[%clk 0:01:47]} 12. d4 {[%clk 0:02:43]}  cxd4 {[%clk 0:01:45]} 13. Nxd4 {[%clk 0:02:40]}  Bxg2 {[%clk 0:01:44]} 14. Kxg2 {[%clk 0:02:41]}  Qc7 {[%clk 0:01:31]} 15. Ndb5 {[%clk 0:02:38]}  Qb7+ {[%clk 0:01:31]} 16. Qf3 {[%clk 0:02:38]}  Nc6 {[%clk 0:01:24]} 17. Rfd1 {[%clk 0:02:33]}  a6 {[%clk 0:01:20]} 18. Nd6 {[%clk 0:02:31]}  Qa7 {[%clk 0:01:14]} 19. Nd5 {[%clk 0:02:30]}  Be5 {[%clk 0:01:04]} 20. Nf4 {[%clk 0:02:15]}  Rad8 {[%clk 0:00:39]} 21. Rd5 {[%clk 0:02:11]}  Bf6 {[%clk 0:00:37]} 22. Rcd1 {[%clk 0:02:07]}  Ne5 {[%clk 0:00:36]} 23. Qe2 {[%clk 0:02:06]}  Bg7 {[%clk 0:00:26]} 24. h4 {[%clk 0:02:05]}  h5 {[%clk 0:00:26]} 25. Nh3 {[%clk 0:02:03]}  Qa8 {[%clk 0:00:23]} 26. f3 {[%clk 0:02:02]}  b5 {[%clk 0:00:22]} 27. c5 {[%clk 0:02:00]}  Qc6 {[%clk 0:00:20]} 28. Ng5 {[%clk 0:01:54]}  f6 {[%clk 0:00:19]} 29. Nh3 {[%clk 0:01:51]}  Nf7 {[%clk 0:00:20]} 30. Nf4 {[%clk 0:01:49]}  Nxd6 {[%clk 0:00:20]} 31. Rxd6 {[%clk 0:01:48]}  Qxc5 {[%clk 0:00:20]} 32. Nxg6 {[%clk 0:01:48]}  Rfe8 {[%clk 0:00:21]} 33. R1d3 {[%clk 0:01:39]}  Bh6 {[%clk 0:00:21]} 34. Rxf6 {[%clk 0:01:35]}  Rxe3 {[%clk 0:00:19]} 35. Qb2 {[%clk 0:01:30]}  Rxd3 {[%clk 0:00:13]} 36. Nf4 {[%clk 0:01:24]}  Bxf4 {[%clk 0:00:11]} 37. Rg6+ {[%clk 0:01:24]}  Kf7 {[%clk 0:00:09]} 38. Qf6+ {[%clk 0:01:23]}  Ke8 {[%clk 0:00:08]} 39. Rg8+ {[%clk 0:01:23]} 1-0


[Site "https://www.chess.com"]

[Event "Titled Tuesday Blitz March 21 Early 2023"]
[White "Gonzalez, Francisco Silva"]
[Black "lolliNOPE"]
[WhiteFideId "1512285"]
[WhiteElo "2074"]
[BlackElo "2059"]
[Result "1-0"]
[Round "09"]
[TimeControl "180+2"]
[Date "2023.03.21"]
[WhiteClock "0:01:04"]
[BlackClock "0:00:04"]

1. d4 {[%clk 0:03:00]}  Nf6 {[%clk 0:02:59]} 2. c4 {[%clk 0:02:55]}  e6 {[%clk 0:03:00]} 3. Nc3 {[%clk 0:02:55]}  Bb4 {[%clk 0:03:00]} 4. a3 {[%clk 0:02:55]}  Bxc3+ {[%clk 0:02:59]} 5. bxc3 {[%clk 0:02:56]}  O-O {[%clk 0:02:59]} 6. e3 {[%clk 0:02:55]}  d6 {[%clk 0:02:59]} 7. f3 {[%clk 0:02:54]}  Nc6 {[%clk 0:02:57]} 8. e4 {[%clk 0:02:55]}  e5 {[%clk 0:02:58]} 9. Be3 {[%clk 0:02:53]}  a5 {[%clk 0:02:54]} 10. Bd3 {[%clk 0:02:53]}  b6 {[%clk 0:02:54]} 11. Ne2 {[%clk 0:02:52]}  Ba6 {[%clk 0:02:49]} 12. Ng3 {[%clk 0:02:52]}  Re8 {[%clk 0:02:47]} 13. O-O {[%clk 0:02:50]}  Ne7 {[%clk 0:02:30]} 14. Bg5 {[%clk 0:02:47]}  Ng6 {[%clk 0:02:29]} 15. Nh5 {[%clk 0:02:45]}  Kh8 {[%clk 0:02:14]} 16. f4 {[%clk 0:02:43]}  exf4 {[%clk 0:02:10]} 17. g3 {[%clk 0:02:36]}  h6 {[%clk 0:01:49]} 18. Bxf6 {[%clk 0:02:29]}  gxf6 {[%clk 0:01:46]} 19. Qd2 {[%clk 0:02:25]}  Rg8 {[%clk 0:01:39]} 20. Kh1 {[%clk 0:02:17]}  Bb7 {[%clk 0:01:34]} 21. d5 {[%clk 0:02:04]}  Bc8 {[%clk 0:01:23]} 22. Rxf4 {[%clk 0:02:00]}  Nxf4 {[%clk 0:01:20]} 23. Qxf4 {[%clk 0:02:00]}  Rg6 {[%clk 0:01:13]} 24. Rf1 {[%clk 0:01:54]}  Bh3 {[%clk 0:01:07]} 25. Rf2 {[%clk 0:01:54]}  Qe7 {[%clk 0:01:06]} 26. Nxf6 {[%clk 0:01:53]}  Qe5 {[%clk 0:00:59]} 27. Qh4 {[%clk 0:01:45]}  Qxc3 {[%clk 0:00:42]} 28. e5 {[%clk 0:01:45]}  Qxd3 {[%clk 0:00:36]} 29. Qxh3 {[%clk 0:01:40]}  Qxc4 {[%clk 0:00:32]} 30. Qf5 {[%clk 0:01:33]}  Rf8 {[%clk 0:00:14]} 31. e6 {[%clk 0:01:32]}  Kg7 {[%clk 0:00:13]} 32. Nh5+ {[%clk 0:01:31]}  Kh7 {[%clk 0:00:13]} 33. e7 {[%clk 0:01:28]}  Rg8 {[%clk 0:00:11]} 34. Qxf7+ {[%clk 0:01:27]}  Kh8 {[%clk 0:00:11]} 35. e8=Q {[%clk 0:01:25]}  Qc1+ {[%clk 0:00:10]} 36. Kg2 {[%clk 0:01:23]}  Rxe8 {[%clk 0:00:11]} 37. Qxe8+ {[%clk 0:01:22]}  Rg8 {[%clk 0:00:11]} 38. Qf7 {[%clk 0:01:16]}  Qe3 {[%clk 0:00:08]} 39. Qf5 {[%clk 0:01:11]}  b5 {[%clk 0:00:05]} 40. Nf6 {[%clk 0:01:05]}  Rg7 {[%clk 0:00:04]} 41. Qc8+ {[%clk 0:01:04]} 1-0


[Site "https://www.chess.com"]

[Event "Titled Tuesday Blitz March 21 Early 2023"]
[White "Liu, Casper"]
[Black "Shvedova, Alexandra"]
[WhiteFideId "1454153"]
[BlackFideId "54154782"]
[WhiteElo "2221"]
[BlackElo "2057"]
[Result "1-0"]
[Round "09"]
[TimeControl "180+2"]
[Date "2023.03.21"]
[WhiteClock "0:00:11"]
[BlackClock "0:00:02"]

1. d4 {[%clk 0:02:30]}  Nf6 {[%clk 0:02:52]} 2. c4 {[%clk 0:02:29]}  e6 {[%clk 0:02:52]} 3. Nc3 {[%clk 0:02:30]}  Bb4 {[%clk 0:02:52]} 4. e3 {[%clk 0:02:30]}  O-O {[%clk 0:02:51]} 5. Bd3 {[%clk 0:02:30]}  d5 {[%clk 0:02:52]} 6. Ne2 {[%clk 0:02:29]}  dxc4 {[%clk 0:02:50]} 7. Bxc4 {[%clk 0:02:29]}  c5 {[%clk 0:02:51]} 8. O-O {[%clk 0:02:29]}  a6 {[%clk 0:02:47]} 9. a3 {[%clk 0:02:28]}  Bxc3 {[%clk 0:02:47]} 10. bxc3 {[%clk 0:02:29]}  Qc7 {[%clk 0:02:43]} 11. Bd3 {[%clk 0:02:25]}  cxd4 {[%clk 0:02:37]} 12. cxd4 {[%clk 0:02:24]}  e5 {[%clk 0:02:30]} 13. e4 {[%clk 0:02:20]}  Nc6 {[%clk 0:02:13]} 14. dxe5 {[%clk 0:02:16]}  Qxe5 {[%clk 0:02:11]} 15. Bf4 {[%clk 0:02:15]}  Qe7 {[%clk 0:02:09]} 16. Nc3 {[%clk 0:02:09]}  Bg4 {[%clk 0:02:04]} 17. Qb1 {[%clk 0:02:02]}  Ne5 {[%clk 0:01:55]} 18. Bc2 {[%clk 0:01:46]}  Rac8 {[%clk 0:01:50]} 19. Nd5 {[%clk 0:01:40]}  Nxd5 {[%clk 0:01:49]} 20. exd5 {[%clk 0:01:41]}  Ng6 {[%clk 0:01:42]} 21. Be3 {[%clk 0:01:40]}  Qd6 {[%clk 0:01:31]} 22. h3 {[%clk 0:01:29]}  Be2 {[%clk 0:01:28]} 23. Re1 {[%clk 0:01:27]}  Bc4 {[%clk 0:01:28]} 24. Rd1 {[%clk 0:01:27]}  Rfe8 {[%clk 0:01:26]} 25. Qxb7 {[%clk 0:01:22]}  Nf4 {[%clk 0:01:06]} 26. Ba4 {[%clk 0:01:06]}  Ne2+ {[%clk 0:01:01]} 27. Kh1 {[%clk 0:01:05]}  Rc7 {[%clk 0:00:45]} 28. Qb6 {[%clk 0:00:57]}  Rd8 {[%clk 0:00:37]} 29. Rd2 {[%clk 0:00:31]}  Rcc8 {[%clk 0:00:14]} 30. Qxd6 {[%clk 0:00:25]}  Rxd6 {[%clk 0:00:15]} 31. Bc6 {[%clk 0:00:24]}  Nc3 {[%clk 0:00:13]} 32. Bc5 {[%clk 0:00:22]}  Rdd8 {[%clk 0:00:13]} 33. Be7 {[%clk 0:00:22]}  Ne4 {[%clk 0:00:12]} 34. Rd4 {[%clk 0:00:21]}  Nxf2+ {[%clk 0:00:11]} 35. Kg1 {[%clk 0:00:20]}  Rxc6 {[%clk 0:00:09]} 36. dxc6 {[%clk 0:00:16]}  Rxd4 {[%clk 0:00:08]} 37. Kxf2 {[%clk 0:00:15]}  Be6 {[%clk 0:00:08]} 38. Rb1 {[%clk 0:00:15]}  f6 {[%clk 0:00:06]} 39. c7 {[%clk 0:00:15]}  Rc4 {[%clk 0:00:05]} 40. Bd6 {[%clk 0:00:14]}  Kf7 {[%clk 0:00:06]} 41. Rb8 {[%clk 0:00:13]}  Rc6 {[%clk 0:00:05]} 42. Rf8+ {[%clk 0:00:11]}  Kg6 {[%clk 0:00:05]} 43. Re8 {[%clk 0:00:10]}  Kf7 {[%clk 0:00:04]} 44. Re7+ {[%clk 0:00:10]}  Kg6 {[%clk 0:00:03]} 45. Rxe6 {[%clk 0:00:10]}  Kf7 {[%clk 0:00:03]} 46. Re7+ {[%clk 0:00:10]}  Kg6 {[%clk 0:00:03]} 47. Re8 {[%clk 0:00:11]}  Kf7 {[%clk 0:00:02]} 48. c8=Q {[%clk 0:00:11]} 1-0


[Site "https://www.chess.com"]

[Event "Titled Tuesday Blitz March 21 Early 2023"]
[White "Blomqvist, Erik"]
[Black "Hoffmann, Asa"]
[WhiteFideId "1709437"]
[BlackFideId "2001470"]
[WhiteElo "2436"]
[BlackElo "2117"]
[Result "1-0"]
[Round "09"]
[TimeControl "180+2"]
[Date "2023.03.21"]
[WhiteClock "0:00:05"]
[BlackClock "0:00:21"]

1. e4 {[%clk 0:03:00]}  d6 {[%clk 0:02:56]} 2. d4 {[%clk 0:02:59]}  Nf6 {[%clk 0:02:55]} 3. Nc3 {[%clk 0:03:00]}  c6 {[%clk 0:02:54]} 4. h3 {[%clk 0:02:57]}  e5 {[%clk 0:02:51]} 5. Nf3 {[%clk 0:02:52]}  Qc7 {[%clk 0:02:51]} 6. a4 {[%clk 0:02:50]}  a5 {[%clk 0:02:49]} 7. Bc4 {[%clk 0:02:49]}  Be7 {[%clk 0:02:49]} 8. O-O {[%clk 0:02:48]}  O-O {[%clk 0:02:49]} 9. Be3 {[%clk 0:02:48]}  b6 {[%clk 0:02:47]} 10. dxe5 {[%clk 0:02:44]}  dxe5 {[%clk 0:02:47]} 11. Qe2 {[%clk 0:02:45]}  Ba6 {[%clk 0:02:46]} 12. Rfd1 {[%clk 0:02:39]}  Re8 {[%clk 0:02:39]} 13. Ng5 {[%clk 0:02:01]}  Rf8 {[%clk 0:02:37]} 14. Rd2 {[%clk 0:01:52]}  h6 {[%clk 0:02:36]} 15. Nf3 {[%clk 0:01:52]}  Bb4 {[%clk 0:02:36]} 16. Bxa6 {[%clk 0:01:34]}  Nxa6 {[%clk 0:02:34]} 17. Qc4 {[%clk 0:01:28]}  Nc5 {[%clk 0:02:22]} 18. Bxc5 {[%clk 0:01:18]}  Bxc5 {[%clk 0:02:17]} 19. Rad1 {[%clk 0:01:12]}  Rfe8 {[%clk 0:02:12]} 20. Ne2 {[%clk 0:01:08]}  Bb4 {[%clk 0:01:56]} 21. c3 {[%clk 0:01:02]}  Bf8 {[%clk 0:01:56]} 22. Ng3 {[%clk 0:01:03]}  g6 {[%clk 0:01:52]} 23. h4 {[%clk 0:00:52]}  Rab8 {[%clk 0:01:47]} 24. h5 {[%clk 0:00:51]}  Kg7 {[%clk 0:01:44]} 25. Nh4 {[%clk 0:00:43]}  Rbd8 {[%clk 0:01:31]} 26. Rd3 {[%clk 0:00:14]}  Rxd3 {[%clk 0:01:27]} 27. Rxd3 {[%clk 0:00:15]}  Re6 {[%clk 0:01:19]} 28. hxg6 {[%clk 0:00:13]}  Ne8 {[%clk 0:00:49]} 29. Nh5+ {[%clk 0:00:07]}  Kg8 {[%clk 0:00:43]} 30. Rg3 {[%clk 0:00:07]}  Ng7 {[%clk 0:00:36]} 31. gxf7+ {[%clk 0:00:04]}  Qxf7 {[%clk 0:00:35]} 32. Nxg7 {[%clk 0:00:05]}  Bxg7 {[%clk 0:00:34]} 33. Nf5 {[%clk 0:00:05]}  Rg6 {[%clk 0:00:34]} 34. Qd3 {[%clk 0:00:02]}  Rxg3 {[%clk 0:00:32]} 35. Qxg3 {[%clk 0:00:03]}  Kh7 {[%clk 0:00:31]} 36. Qg4 {[%clk 0:00:03]}  Bf6 {[%clk 0:00:31]} 37. g3 {[%clk 0:00:03]}  Qg6 {[%clk 0:00:31]} 38. Qf3 {[%clk 0:00:02]}  h5 {[%clk 0:00:29]} 39. Kg2 {[%clk 0:00:03]}  b5 {[%clk 0:00:29]} 40. Qd3 {[%clk 0:00:03]}  Bg7 {[%clk 0:00:27]} 41. Qd7 {[%clk 0:00:03]}  bxa4 {[%clk 0:00:27]} 42. Kf3 {[%clk 0:00:02]}  Qg4+ {[%clk 0:00:26]} 43. Ke3 {[%clk 0:00:02]}  Qg5+ {[%clk 0:00:25]} 44. Kd3 {[%clk 0:00:02]}  Qf6 {[%clk 0:00:24]} 45. Kc4 {[%clk 0:00:01]}  Kg6 {[%clk 0:00:24]} 46. Qxg7+ {[%clk 0:00:01]}  Qxg7 {[%clk 0:00:24]} 47. Nxg7 {[%clk 0:00:02]}  Kxg7 {[%clk 0:00:24]} 48. Kc5 {[%clk 0:00:03]}  Kf6 {[%clk 0:00:24]} 49. Kxc6 {[%clk 0:00:03]}  Kg5 {[%clk 0:00:24]} 50. f3 {[%clk 0:00:03]}  h4 {[%clk 0:00:24]} 51. gxh4+ {[%clk 0:00:03]}  Kxh4 {[%clk 0:00:23]} 52. Kd5 {[%clk 0:00:04]}  Kg3 {[%clk 0:00:23]} 53. Kxe5 {[%clk 0:00:04]}  Kxf3 {[%clk 0:00:23]} 54. Kd5 {[%clk 0:00:05]}  Ke3 {[%clk 0:00:23]} 55. e5 {[%clk 0:00:05]}  Kd3 {[%clk 0:00:23]} 56. e6 {[%clk 0:00:06]}  Kc2 {[%clk 0:00:23]} 57. e7 {[%clk 0:00:07]}  Kxb2 {[%clk 0:00:23]} 58. e8=Q {[%clk 0:00:07]}  a3 {[%clk 0:00:24]} 59. Qb5+ {[%clk 0:00:07]}  Kxc3 {[%clk 0:00:23]} 60. Qc4+ {[%clk 0:00:06]}  Kb2 {[%clk 0:00:23]} 61. Qe2+ {[%clk 0:00:06]}  Kb1 {[%clk 0:00:23]} 62. Qd1+ {[%clk 0:00:06]}  Kb2 {[%clk 0:00:22]} 63. Qd2+ {[%clk 0:00:06]}  Kb1 {[%clk 0:00:22]} 64. Kc4 {[%clk 0:00:05]}  a2 {[%clk 0:00:22]} 65. Qd1+ {[%clk 0:00:05]}  Kb2 {[%clk 0:00:21]} 66. Qd2+ {[%clk 0:00:05]}  Ka1 {[%clk 0:00:21]} 67. Qc1# {[%clk 0:00:05]} 1-0


[Site "https://www.chess.com"]

[Event "Titled Tuesday Blitz March 21 Early 2023"]
[White "Jimenez Jimenez, Leandro"]
[Black "Safin, Robert"]
[WhiteFideId "6415253"]
[BlackFideId "34189120"]
[WhiteElo "2263"]
[BlackElo "2245"]
[Result "0-1"]
[Round "09"]
[TimeControl "180+2"]
[Date "2023.03.21"]
[WhiteClock "0:00:01"]
[BlackClock "0:00:03"]

1. d4 {[%clk 0:03:00]}  Nf6 {[%clk 0:02:59]} 2. c4 {[%clk 0:03:00]}  e6 {[%clk 0:03:00]} 3. Nf3 {[%clk 0:03:00]}  d5 {[%clk 0:03:00]} 4. Nc3 {[%clk 0:02:59]}  c5 {[%clk 0:02:59]} 5. cxd5 {[%clk 0:02:59]}  cxd4 {[%clk 0:02:59]} 6. Qxd4 {[%clk 0:02:55]}  exd5 {[%clk 0:02:59]} 7. Bg5 {[%clk 0:02:55]}  Be7 {[%clk 0:02:58]} 8. e3 {[%clk 0:02:54]}  h6 {[%clk 0:02:56]} 9. Bh4 {[%clk 0:02:50]}  O-O {[%clk 0:02:54]} 10. Be2 {[%clk 0:02:47]}  Nc6 {[%clk 0:02:54]} 11. Qa4 {[%clk 0:02:47]}  Qb6 {[%clk 0:02:48]} 12. Qb5 {[%clk 0:02:36]}  Qxb5 {[%clk 0:02:15]} 13. Bxb5 {[%clk 0:02:26]}  g5 {[%clk 0:02:04]} 14. Bg3 {[%clk 0:02:25]}  Bb4 {[%clk 0:02:04]} 15. O-O {[%clk 0:02:09]}  Bxc3 {[%clk 0:01:54]} 16. bxc3 {[%clk 0:02:10]}  Ne4 {[%clk 0:01:54]} 17. Rac1 {[%clk 0:01:58]}  a6 {[%clk 0:01:47]} 18. Bxc6 {[%clk 0:01:44]}  bxc6 {[%clk 0:01:47]} 19. c4 {[%clk 0:01:44]}  g4 {[%clk 0:01:38]} 20. Nd4 {[%clk 0:01:37]}  c5 {[%clk 0:00:52]} 21. Nb3 {[%clk 0:01:31]}  dxc4 {[%clk 0:00:50]} 22. Rxc4 {[%clk 0:01:30]}  Re8 {[%clk 0:00:50]} 23. Bf4 {[%clk 0:01:16]}  a5 {[%clk 0:00:43]} 24. Rfc1 {[%clk 0:01:10]}  Ba6 {[%clk 0:00:43]} 25. Ra4 {[%clk 0:01:02]}  Bb5 {[%clk 0:00:34]} 26. Rxa5 {[%clk 0:01:01]}  Rxa5 {[%clk 0:00:34]} 27. Nxa5 {[%clk 0:01:02]}  Ra8 {[%clk 0:00:33]} 28. Bc7 {[%clk 0:00:35]}  Ra7 {[%clk 0:00:28]} 29. Bb6 {[%clk 0:00:35]}  Ra6 {[%clk 0:00:28]} 30. Bc7 {[%clk 0:00:34]}  Ra7 {[%clk 0:00:22]} 31. Bd8 {[%clk 0:00:28]}  Rd7 {[%clk 0:00:11]} 32. Bb6 {[%clk 0:00:25]}  Rd2 {[%clk 0:00:12]} 33. f3 {[%clk 0:00:15]}  gxf3 {[%clk 0:00:12]} 34. gxf3 {[%clk 0:00:16]}  Ng5 {[%clk 0:00:13]} 35. Bc7 {[%clk 0:00:06]}  Nxf3+ {[%clk 0:00:12]} 36. Kh1 {[%clk 0:00:06]}  Bd3 {[%clk 0:00:09]} 37. Rxc5 {[%clk 0:00:03]}  Be4 {[%clk 0:00:07]} 38. Bg3 {[%clk 0:00:02]}  Ng5+ {[%clk 0:00:03]} 39. Kg1 {[%clk 0:00:03]}  Nf3+ {[%clk 0:00:04]} 40. Kh1 {[%clk 0:00:03]}  Ne1+ {[%clk 0:00:03]} 41. Kg1 {[%clk 0:00:03]}  Nd3 {[%clk 0:00:03]} 42. Rc8+ {[%clk 0:00:03]}  Kh7 {[%clk 0:00:02]} 43. Nc4 {[%clk 0:00:03]}  Rd1+ {[%clk 0:00:02]} 44. Be1 {[%clk 0:00:01]}  Rxe1# {[%clk 0:00:03]} 0-1


[Site "https://www.chess.com"]

[Event "Titled Tuesday Blitz March 21 Early 2023"]
[White "TheKnightOfBosnia"]
[Black "Krzywda, Andrzej"]
[BlackFideId "1114565"]
[WhiteElo "2517"]
[BlackElo "2155"]
[Result "1-0"]
[Round "09"]
[TimeControl "180+2"]
[Date "2023.03.21"]
[WhiteClock "0:00:44"]
[BlackClock "0:00:06"]

1. e4 {[%clk 0:03:00]}  e5 {[%clk 0:02:51]} 2. Nf3 {[%clk 0:03:01]}  Nf6 {[%clk 0:02:51]} 3. Nxe5 {[%clk 0:03:00]}  d6 {[%clk 0:02:51]} 4. Nf3 {[%clk 0:03:00]}  Nxe4 {[%clk 0:02:51]} 5. g3 {[%clk 0:03:01]}  Be7 {[%clk 0:02:48]} 6. Bg2 {[%clk 0:02:58]}  O-O {[%clk 0:02:47]} 7. O-O {[%clk 0:02:59]}  Nc6 {[%clk 0:02:47]} 8. Re1 {[%clk 0:02:57]}  d5 {[%clk 0:02:45]} 9. c4 {[%clk 0:02:56]}  Be6 {[%clk 0:02:34]} 10. cxd5 {[%clk 0:02:47]}  Bxd5 {[%clk 0:02:32]} 11. Nc3 {[%clk 0:02:47]}  Nxc3 {[%clk 0:02:29]} 12. dxc3 {[%clk 0:02:48]}  Re8 {[%clk 0:02:21]} 13. Bf4 {[%clk 0:02:45]}  Be6 {[%clk 0:02:05]} 14. Qxd8 {[%clk 0:02:43]}  Bxd8 {[%clk 0:02:01]} 15. Ng5 {[%clk 0:02:25]}  Bxg5 {[%clk 0:02:00]} 16. Bxg5 {[%clk 0:02:25]}  h6 {[%clk 0:01:46]} 17. Be3 {[%clk 0:02:23]}  Ne7 {[%clk 0:01:41]} 18. Bxb7 {[%clk 0:02:13]}  Rab8 {[%clk 0:01:41]} 19. Bg2 {[%clk 0:02:10]}  Rxb2 {[%clk 0:01:36]} 20. a4 {[%clk 0:02:00]}  a5 {[%clk 0:01:29]} 21. Bc5 {[%clk 0:01:58]}  Ng6 {[%clk 0:01:07]} 22. Bc6 {[%clk 0:01:31]}  Reb8 {[%clk 0:01:04]} 23. Bb5 {[%clk 0:01:31]}  Rd8 {[%clk 0:00:55]} 24. Bd4 {[%clk 0:01:29]}  Ne7 {[%clk 0:00:49]} 25. Rab1 {[%clk 0:01:28]}  Rxb1 {[%clk 0:00:43]} 26. Rxb1 {[%clk 0:01:29]}  Nf5 {[%clk 0:00:43]} 27. Be5 {[%clk 0:01:28]}  Nd6 {[%clk 0:00:28]} 28. Bc6 {[%clk 0:01:23]}  f6 {[%clk 0:00:27]} 29. Bd4 {[%clk 0:01:17]}  Nc4 {[%clk 0:00:24]} 30. Rb7 {[%clk 0:01:13]}  Rc8 {[%clk 0:00:23]} 31. Ra7 {[%clk 0:01:09]}  Kf7 {[%clk 0:00:17]} 32. Bb7 {[%clk 0:01:02]}  Rb8 {[%clk 0:00:15]} 33. Ba6 {[%clk 0:00:56]}  Rb1+ {[%clk 0:00:13]} 34. Kg2 {[%clk 0:00:56]}  Bd5+ {[%clk 0:00:14]} 35. Kh3 {[%clk 0:00:46]}  Be6+ {[%clk 0:00:13]} 36. g4 {[%clk 0:00:47]}  Nd6 {[%clk 0:00:09]} 37. Rxc7+ {[%clk 0:00:46]}  Kg6 {[%clk 0:00:10]} 38. Bd3+ {[%clk 0:00:46]}  f5 {[%clk 0:00:06]} 39. Bxb1 {[%clk 0:00:44]} 1-0


[Site "https://www.chess.com"]

[Event "Titled Tuesday Blitz March 21 Early 2023"]
[White "Kozin, Yuri"]
[Black "ArtemDyachuk"]
[WhiteFideId "4129920"]
[WhiteElo "2512"]
[BlackElo "2381"]
[Result "1-0"]
[Round "09"]
[TimeControl "180+2"]
[Date "2023.03.21"]
[WhiteClock "0:00:19"]
[BlackClock "0:00:09"]

1. e4 {[%clk 0:02:18]}  c5 {[%clk 0:02:57]} 2. Nf3 {[%clk 0:02:17]}  d6 {[%clk 0:02:56]} 3. d4 {[%clk 0:02:17]}  cxd4 {[%clk 0:02:57]} 4. Nxd4 {[%clk 0:02:17]}  Nf6 {[%clk 0:02:57]} 5. Nc3 {[%clk 0:02:18]}  a6 {[%clk 0:02:58]} 6. Be3 {[%clk 0:02:18]}  e5 {[%clk 0:02:58]} 7. Nf3 {[%clk 0:02:18]}  Be6 {[%clk 0:02:57]} 8. Ng5 {[%clk 0:02:17]}  Bd7 {[%clk 0:02:52]} 9. Bc4 {[%clk 0:02:16]}  d5 {[%clk 0:02:48]} 10. Nxd5 {[%clk 0:02:14]}  Nc6 {[%clk 0:02:16]} 11. Bb6 {[%clk 0:02:09]}  Qc8 {[%clk 0:02:02]} 12. Nc7+ {[%clk 0:01:57]}  Ke7 {[%clk 0:02:01]} 13. Nxa8 {[%clk 0:01:46]}  Nd4 {[%clk 0:01:30]} 14. Nc7 {[%clk 0:01:28]}  Bg4 {[%clk 0:01:23]} 15. f3 {[%clk 0:01:21]}  Bh5 {[%clk 0:01:23]} 16. c3 {[%clk 0:01:04]}  h6 {[%clk 0:01:14]} 17. cxd4 {[%clk 0:00:58]}  hxg5 {[%clk 0:01:15]} 18. dxe5 {[%clk 0:00:58]}  Nd7 {[%clk 0:01:09]} 19. Qd6+ {[%clk 0:00:49]}  Kd8 {[%clk 0:01:09]} 20. Ne6+ {[%clk 0:00:49]}  Ke8 {[%clk 0:01:09]} 21. Nxf8 {[%clk 0:00:41]}  Rxf8 {[%clk 0:01:06]} 22. Rc1 {[%clk 0:00:29]}  Nxb6 {[%clk 0:00:56]} 23. Qxb6 {[%clk 0:00:25]}  Qb8 {[%clk 0:00:46]} 24. O-O {[%clk 0:00:23]}  Qxe5 {[%clk 0:00:45]} 25. Qxb7 {[%clk 0:00:21]}  g4 {[%clk 0:00:25]} 26. Bxf7+ {[%clk 0:00:21]}  Kd8 {[%clk 0:00:09]} 27. Rc8# {[%clk 0:00:19]} 1-0


[Site "https://www.chess.com"]

[Event "Titled Tuesday Blitz March 21 Early 2023"]
[White "Ovezdurdyyeva, Jemal"]
[Black "Ljukin, Sergei"]
[WhiteFideId "14001888"]
[BlackFideId "14102200"]
[WhiteElo "2043"]
[BlackElo "2312"]
[Result "0-1"]
[Round "09"]
[TimeControl "180+2"]
[Date "2023.03.21"]
[WhiteClock "0:01:39"]
[BlackClock "0:00:36"]

1. e4 {[%clk 0:03:00]}  e6 {[%clk 0:02:54]} 2. d4 {[%clk 0:03:00]}  d5 {[%clk 0:02:54]} 3. Nd2 {[%clk 0:03:00]}  Nf6 {[%clk 0:02:54]} 4. e5 {[%clk 0:03:00]}  Nfd7 {[%clk 0:02:54]} 5. Ngf3 {[%clk 0:03:00]}  c5 {[%clk 0:02:54]} 6. c3 {[%clk 0:03:00]}  Nc6 {[%clk 0:02:55]} 7. Be2 {[%clk 0:03:00]}  Qb6 {[%clk 0:02:42]} 8. Nb3 {[%clk 0:02:59]}  cxd4 {[%clk 0:02:42]} 9. cxd4 {[%clk 0:02:59]}  a5 {[%clk 0:02:42]} 10. a4 {[%clk 0:02:58]}  Bb4+ {[%clk 0:02:41]} 11. Kf1 {[%clk 0:02:57]}  f6 {[%clk 0:02:38]} 12. exf6 {[%clk 0:02:53]}  Nxf6 {[%clk 0:02:38]} 13. g3 {[%clk 0:02:50]}  O-O {[%clk 0:02:26]} 14. Kg2 {[%clk 0:02:49]}  Ne4 {[%clk 0:02:26]} 15. Be3 {[%clk 0:02:49]}  Bd7 {[%clk 0:02:14]} 16. Bd3 {[%clk 0:02:47]}  Nf6 {[%clk 0:02:02]} 17. Nc5 {[%clk 0:02:37]}  Bxc5 {[%clk 0:01:56]} 18. dxc5 {[%clk 0:02:37]}  Qc7 {[%clk 0:01:56]} 19. Bb5 {[%clk 0:02:21]}  e5 {[%clk 0:01:54]} 20. Bg5 {[%clk 0:02:16]}  Be6 {[%clk 0:01:29]} 21. Re1 {[%clk 0:02:14]}  Ne4 {[%clk 0:01:25]} 22. Be3 {[%clk 0:02:05]}  Rad8 {[%clk 0:01:08]} 23. Ng5 {[%clk 0:02:01]}  Bf5 {[%clk 0:01:01]} 24. f3 {[%clk 0:01:54]}  Nf6 {[%clk 0:00:53]} 25. g4 {[%clk 0:01:50]}  Bc8 {[%clk 0:00:48]} 26. h4 {[%clk 0:01:44]}  h6 {[%clk 0:00:44]} 27. Nh3 {[%clk 0:01:43]}  e4 {[%clk 0:00:41]} 28. g5 {[%clk 0:01:39]}  exf3+ {[%clk 0:00:41]} 29. Qxf3 {[%clk 0:01:39]}  Ne4 {[%clk 0:00:38]} 30. Bf4 {[%clk 0:01:39]}  Bxh3+ {[%clk 0:00:36]} 0-1


[Site "https://www.chess.com"]